[Event "CCT Chessable Masters Place D-III 2024"]
[Site "Online"]
[Date "2024.02.01"]
[Round "1"]
[White "Dubov, Daniil"]
[Black "Le, Tuan Minh"]
[Result "1-0"]
[ECO "A07"]
[WhiteElo "2708"]
[BlackElo "2567"]
[Annotator "TA"]
[PlyCount "61"]
[EventDate "2024.01.12"]
[EventType "k.o."]
[EventCountry "NET"]
[SourceTitle "playchess.com"]
[Source "ChessBase"]
[SourceQuality "1"]
[TimeControl "600+2"]

{[%evp 9,61,2,25,-7,-2,-12,-12,0,0,0,33,38,58,54,50,53,54,57,45,12,13,10,0,14,14,7,9,0,14,8,0,0,106,120,126,122,114,117,167,170,1068,1052,1018,993,29986,29987,29987,29988,29988,29989,29993,29994,29994,29995]} 1. g3 {[%emt 0:00:03]} d5 {[%emt 0:00:12]} 2. Bg2 {[%emt 0:00:00]} Nf6 {[%emt 0:00:01]} 3. Nf3 {[%emt 0:00:02]} Nbd7 {[%emt 0:00:03]} 4. O-O {[%emt 0:00:11]} e5 {[%emt 0:00:03]} 5. d3 {[%emt 0:00:01]} c6 {[%emt 0:00:01]} 6. a4 {[%emt 0:00:02][%cal Oe2e4]} a5 {[%emt 0:00:19]} 7. Nc3 {[%emt 0:00:05]} Bb4 {[%emt 0:00:05]} 8. e4 {[%emt 0:00:10] The position is equal.} dxe4 {[%emt 0:00:12]} 9. Nxe4 {[%emt 0:00:02]} O-O {[%emt 0:00:12]} 10. Bg5 {[%emt 0:00:10]} Be7 {[%emt 0:00:02]} 11. Nxf6+ {[%emt 0:00:32]} Bxf6 {[%emt 0:00:03]} 12. Bxf6 {[%emt 0:00:01]} Qxf6 {[%emt 0:00:04]} 13. Re1 {[%emt 0:00:01]} e4 {[%emt 0:00:46]} 14. Nd2 {[%emt 0:00:30]} exd3 {[%emt 0:00:20]} 15. Ne4 {[%emt 0:00:03] Against Nc5} Qxb2 {[%emt 0:00:57]} 16. Qxd3 {[%emt 0:00:01]} Ne5 {[%emt 0:00:01]} 17. Qd6 {[%emt 0:00:07][%mdl 1024] aiming for Rab1. White has compensation.} Nc4 {[%emt 0:00:05]} 18. Qc5 {[%emt 0:00:15]} Qb4 {[%emt 0:00:21]} 19. Qh5 {[%emt 0:00:32] Rab1 would now be deadly.} h6 {[%emt 0:00:37]} 20. c3 {[%emt 0:00:40]} Qb6 {[%emt 0:00:50]} (20... Qb2 $11 {keeps the balance.}) 21. Bf1 $1 $16 {[%emt 0:01:13]} Be6 {[%emt 0:00:02]} 22. Bxc4 {[%emt 0:00:16]} Bxc4 {[%emt 0:00:03]} 23. Nf6+ $1 {[%emt 0:00:01]} gxf6 {[%emt 0:00:17] [#]} (23... Kh8 $16 {is a better defense.}) 24. Re4 $1 $18 {[%emt 0:00:17] Rg4+ would kill now.} Bd3 $2 {[%emt 0:01:21]} (24... f5 25. Qxf5 (25. Rxc4 Qb3 $18) 25... Be2) 25. Rg4+ {[%emt 0:00:06]} Bg6 {[%emt 0:00:01]} 26. Qxh6 {[%emt 0:00:00] White threatens Rh4 and mate.} Qb2 {[%emt 0:02:05] [#]} 27. Rh4 $1 {[%emt 0:00:33][%csl Gh4][%cal Rh6h8] White mates.} Qxa1+ {[%emt 0:00:03]} 28. Kg2 {[%emt 0:00:01][%csl Gh4][%cal Rh6h8]} Be4+ {[%emt 0:00:16]} 29. Rxe4 {[%emt 0:00:01][%cal Re4g4]} Qd1 {[%emt 0:00:21]} 30. Rh4 {[%emt 0:00:08][%csl Gh4][%cal Rh6h8]} Qd5+ {[%emt 0:00:00] [#]} 31. f3 $1 {[%emt 0:00:01] Weighted Error Value: White=0.04 (flawless) /Black=0.44.  Mistake:       	---       	Black=3      Inaccurate:     	White=1     	Black=1      OK:         	White=6     	Black=6      Best:        	White=1     	Black=2      Strong:       	White=2     	---} 1-0

[Event "CCT Chessable Masters Place D-III 2024"]
[Site "Online"]
[Date "2024.02.01"]
[Round "1"]
[White "Tabatabaei, M. Amin"]
[Black "Vidit, Santosh Gujrathi"]
[Result "1/2-1/2"]
[ECO "D30"]
[WhiteElo "2696"]
[BlackElo "2742"]
[Annotator "TA"]
[PlyCount "111"]
[EventDate "2024.01.12"]
[EventType "k.o."]
[EventCountry "NET"]
[SourceTitle "playchess.com"]
[Source "ChessBase"]
[SourceQuality "1"]
[TimeControl "600+2"]

{[%evp 9,111,6,6,11,8,2,8,0,0,0,0,0,0,0,0,0,0,0,0,0,0,0,0,0,0,0,0,0,0,0,8,0,0,-7,19,0,0,0,0,0,0,0,0,0,0,0,9,0,0,0,0,0,0,0,6,0,0,0,0,0,0,0,0,0,0,0,0,0,0,0,0,0,0,0,0,0,0,0,0,0,0,0,0,0,0,0,0,0,0,0,0,0,0,0,0,0,0,0,0,0,0,0,0,0]} 1. d4 {[%emt 0:00:04]} d5 {[%emt 0:00:11]} 2. c4 {[%emt 0:00:09]} e6 {[%emt 0:00:02]} 3. Nf3 {[%emt 0:00:06]} Nf6 {[%emt 0:00:03]} 4. e3 {[%emt 0:00:03]} Bd6 {[%emt 0:00:05]} 5. c5 {[%emt 0:00:16]} Be7 {[%emt 0:00:02] The position is equal.} 6. b4 {[%emt 0:00:08]} O-O {[%emt 0:00:04]} 7. Bb2 {[%emt 0:00:07]} b6 {[%emt 0:00:05]} 8. Nc3 {[%emt 0:00:09]} a5 {[%emt 0:00:04]} 9. a3 {[%emt 0:00:01]} c6 {[%emt 0:01:13]} 10. Bd3 {[%emt 0:01:23]} Ba6 {[%emt 0:00:07]} 11. O-O {[%emt 0:00:19]} Bxd3 {[%emt 0:00:08]} 12. Qxd3 {[%emt 0:00:00]} Nbd7 {[%emt 0:00:01]} 13. Rfc1 {[%emt 0:00:06]} Qb8 {[%emt 0:00:05]} 14. Qc2 {[%emt 0:00:20]} Qb7 {[%emt 0:00:16]} 15. h3 {[%emt 0:00:34]} Rfb8 {[%emt 0:00:02][%cal Rb6c5] ...bxc5 would now be deadly.} 16. Rcb1 {[%emt 0:00:06]} Bd8 {[%emt 0:00:15]} 17. Na4 {[%emt 0:00:22]} axb4 {[%emt 0:00:27]} 18. axb4 {[%emt 0:00:00]} Ne4 {[%emt 0:00:06]} 19. Bc1 {[%emt 0:00:21]} Bf6 {[%emt 0:00:51]} 20. Nd2 {[%emt 0:00:06]} Nxd2 $1 {[%emt 0:00:46]} 21. Bxd2 {[%emt 0:00:00]} e5 {[%emt 0:00:14]} 22. dxe5 {[%emt 0:00:34]} Bxe5 {[%emt 0:00:04]} 23. Bc3 {[%emt 0:00:01]} Bxc3 {[%emt 0:00:43]} 24. Qxc3 {[%emt 0:00:00]} bxc5 {[%emt 0:00:34]} 25. Nxc5 {[%emt 0:00:04]} Nxc5 {[%emt 0:00:03]} 26. Rxa8 {[%emt 0:00:16]} Qxa8 {[%emt 0:00:02]} 27. Qxc5 $11 {[%emt 0:00:02][%mdl 4096] Endgame. KQR-KQR} h6 {[%emt 0:00:08]} 28. Rc1 {[%emt 0:00:08]} Qb7 {[%emt 0:00:12]} 29. Qxc6 {[%emt 0:00:19]} Qxc6 {[%emt 0:00:01]} 30. Rxc6 {[%emt 0:00:00]} Rxb4 {[%emt 0:00:01] KR-KR} 31. Rd6 {[%emt 0:00:01]} Rb1+ {[%emt 0:00:07]} 32. Kh2 {[%emt 0:00:01]} Rb2 {[%emt 0:00:07]} 33. Kg3 {[%emt 0:00:07]} Rd2 {[%emt 0:00:01]} 34. Rd8+ {[%emt 0:01:23]} Kh7 {[%emt 0:00:03]} 35. Kf3 {[%emt 0:00:04]} h5 {[%emt 0:00:05]} 36. h4 {[%emt 0:00:27]} g6 {[%emt 0:00:02]} 37. Ra8 {[%emt 0:00:15]} Kg7 {[%emt 0:00:48]} 38. Ra6 {[%emt 0:00:04]} d4 {[%emt 0:00:51]} 39. e4 {[%emt 0:00:03]} Rd3+ {[%emt 0:00:05]} 40. Ke2 {[%emt 0:00:13]} Rb3 {[%emt 0:00:01]} 41. Rd6 {[%emt 0:00:01]} Rb2+ {[%emt 0:00:03]} 42. Kf3 {[%emt 0:00:03]} Rb3+ {[%emt 0:00:03]} 43. Kf4 {[%emt 0:00:02]} Rb2 {[%emt 0:00:01]} 44. Kg3 {[%emt 0:00:01]} Rd2 {[%emt 0:00:03]} 45. Kf3 {[%emt 0:00:25]} Kf8 {[%emt 0:00:04]} 46. g3 {[%emt 0:00:10]} Ke7 {[%emt 0:00:01]} 47. Ra6 {[%emt 0:00:23]} Rb2 {[%emt 0:00:11]} 48. Ra4 {[%emt 0:00:06]} Rd2 {[%emt 0:00:05]} 49. Ra6 {[%emt 0:00:13]} Rb2 {[%emt 0:00:01]} 50. Ra4 {[%emt 0:00:12]} Rd2 {[%emt 0:00:02]} 51. Ra7+ {[%emt 0:00:09]} Ke6 {[%emt 0:00:02]} 52. Ra6+ {[%emt 0:00:01]} Ke5 {[%emt 0:00:07]} 53. Ra5+ {[%emt 0:00:00]} Ke6 {[%emt 0:00:01]} 54. Ra6+ {[%emt 0:00:01]} Ke5 {[%emt 0:00:01]} 55. Ra5+ {[%emt 0:00:02]} Ke6 {[%emt 0:00:00]} 56. Ra6+ {[%emt 0:00:00] An interesting draw.   Weighted Error Value: White=0.01 (flawless) /Black=0.01 (flawless) .  Inaccurate:     	---       	Black=1      OK:         	White=15    	Black=26     Best:        	---       	Black=1      Strong:       	---       	Black=1} 1/2-1/2

[Event "CCT Chessable Masters Place D-III 2024"]
[Site "Online"]
[Date "2024.02.01"]
[Round "1"]
[White "Sarana, Alexey"]
[Black "Samant Aditya S"]
[Result "1/2-1/2"]
[ECO "D53"]
[WhiteElo "2695"]
[BlackElo "2512"]
[Annotator "ChessBase"]
[PlyCount "82"]
[EventDate "2024.01.12"]
[EventType "k.o."]
[EventCountry "NET"]
[SourceTitle "playchess.com"]
[Source "ChessBase"]
[SourceQuality "1"]
[TimeControl "600+2"]

1. d4 {[%emt 0:00:02]} Nf6 {[%emt 0:00:03]} 2. c4 {[%emt 0:00:01]} e6 {[%emt 0:00:01]} 3. Nf3 {[%emt 0:00:01]} d5 {[%emt 0:00:01]} 4. Nc3 {[%emt 0:00:01]} Be7 {[%emt 0:00:01]} 5. Bg5 {[%emt 0:00:01]} h6 {[%emt 0:00:11]} 6. Bxf6 {[%emt 0:00:02]} Bxf6 {[%emt 0:00:00]} 7. cxd5 {[%emt 0:00:01]} exd5 {[%emt 0:00:01]} 8. Qb3 {[%emt 0:00:00]} c6 {[%emt 0:00:14]} 9. e3 {[%emt 0:00:01]} O-O {[%emt 0:00:11]} 10. Bd3 {[%emt 0:00:02]} Qb6 {[%emt 0:02:00]} 11. Qc2 {[%emt 0:00:02]} Be6 {[%emt 0:00:13]} 12. O-O {[%emt 0:00:06]} Nd7 {[%emt 0:00:03]} 13. Rab1 {[%emt 0:00:35]} a5 {[%emt 0:00:39]} 14. a3 {[%emt 0:00:08]} Qc7 {[%emt 0:01:45]} 15. h3 {[%emt 0:00:02]} Qd6 {[%emt 0:01:42]} 16. Rfc1 {[%emt 0:00:11]} g6 {[%emt 0:00:50]} 17. Ne2 {[%emt 0:00:10]} Rfc8 {[%emt 0:00:43]} 18. Nf4 {[%emt 0:00:33]} Nf8 {[%emt 0:00:06]} 19. b4 {[%emt 0:00:06]} axb4 {[%emt 0:00:01]} 20. axb4 {[%emt 0:00:00]} Bd7 {[%emt 0:00:32]} 21. Qb2 {[%emt 0:00:15]} Ne6 {[%emt 0:00:05]} 22. Ne5 {[%emt 0:00:08]} Bxe5 {[%emt 0:00:37]} 23. dxe5 {[%emt 0:00:00]} Qe7 {[%emt 0:00:00]} 24. Ne2 {[%emt 0:00:26]} Ra7 {[%emt 0:00:21]} 25. f4 {[%emt 0:00:03]} Rca8 {[%emt 0:00:02]} 26. Nc3 {[%emt 0:00:02]} d4 {[%emt 0:00:11]} 27. exd4 {[%emt 0:00:01]} Nxf4 {[%emt 0:00:01]} 28. Bf1 {[%emt 0:00:08]} Qg5 {[%emt 0:00:03]} 29. Kh1 {[%emt 0:00:15]} Bf5 {[%emt 0:00:02]} 30. Ra1 {[%emt 0:00:07]} Rxa1 {[%emt 0:00:02]} 31. Rxa1 {[%emt 0:00:00]} Rxa1 {[%emt 0:00:00]} 32. Qxa1 {[%emt 0:00:00]} Qg3 {[%emt 0:00:04]} 33. Qc1 {[%emt 0:01:14]} Qf2 {[%emt 0:00:01]} 34. e6 {[%emt 0:00:44]} Bxe6 {[%emt 0:00:04]} 35. Ne4 {[%emt 0:00:03]} Ne2 {[%emt 0:00:12]} 36. Bxe2 {[%emt 0:00:35]} Qxe2 {[%emt 0:00:00]} 37. Nf6+ {[%emt 0:00:00]} Kg7 {[%emt 0:00:01]} 38. Ne8+ {[%emt 0:00:01]} Kh7 {[%emt 0:00:01]} 39. Nf6+ {[%emt 0:00:01]} Kg7 {[%emt 0:00:00]} 40. Ne8+ {[%emt 0:00:00]} Kf8 {[%emt 0:00:02]} 41. Nf6 {[%emt 0:00:01]} Kg7 {[%emt 0:00:13]} 1/2-1/2

[Event "CCT Chessable Masters Place D-III 2024"]
[Site "Online"]
[Date "2024.02.01"]
[Round "1"]
[White "evgchess5"]
[Black "Dreev, Aleksey"]
[Result "0-1"]
[ECO "B13"]
[WhiteElo "2693"]
[BlackElo "2606"]
[Annotator "ChessBase"]
[PlyCount "66"]
[EventDate "2024.01.12"]
[EventType "k.o."]
[EventCountry "NET"]
[SourceTitle "playchess.com"]
[Source "ChessBase"]
[SourceQuality "1"]
[TimeControl "600+2"]

1. e4 {[%emt 0:00:08]} c6 {[%emt 0:00:06]} 2. d4 {[%emt 0:00:03]} d5 {[%emt 0:00:00]} 3. exd5 {[%emt 0:00:02]} cxd5 {[%emt 0:00:01]} 4. Bd3 {[%emt 0:00:01]} Nc6 {[%emt 0:00:02]} 5. c3 {[%emt 0:00:01]} Qc7 {[%emt 0:00:01]} 6. h3 {[%emt 0:00:31]} e6 {[%emt 0:00:02]} 7. Nf3 {[%emt 0:00:03]} Bd6 {[%emt 0:00:01]} 8. O-O {[%emt 0:00:02]} Nge7 {[%emt 0:00:45]} 9. Re1 {[%emt 0:00:09]} Ng6 {[%emt 0:00:25]} 10. c4 {[%emt 0:01:56]} dxc4 {[%emt 0:00:32]} 11. Bxc4 {[%emt 0:00:03]} O-O {[%emt 0:01:37]} 12. Nc3 {[%emt 0:00:03]} a6 {[%emt 0:00:10]} 13. d5 {[%emt 0:01:05]} Nce5 {[%emt 0:00:04]} 14. Bb3 {[%emt 0:00:53]} Nxf3+ {[%emt 0:00:29]} 15. Qxf3 {[%emt 0:00:03]} e5 {[%emt 0:00:00]} 16. Ne4 {[%emt 0:00:03]} f5 {[%emt 0:00:02]} 17. Nxd6 {[%emt 0:00:03]} Qxd6 {[%emt 0:00:00]} 18. Bd2 {[%emt 0:00:15]} Bd7 {[%emt 0:00:16]} 19. Rac1 {[%emt 0:00:12]} a5 {[%emt 0:00:50]} 20. a3 {[%emt 0:00:19]} h6 {[%emt 0:00:11]} 21. Ba2 {[%emt 0:01:33]} Kh7 {[%emt 0:00:29]} 22. Qg3 {[%emt 0:00:30]} f4 {[%emt 0:00:15]} 23. Qc3 {[%emt 0:00:18]} Nh4 {[%emt 0:00:31]} 24. Kh2 {[%emt 0:00:33]} Qg6 {[%emt 0:00:17]} 25. Rg1 {[%emt 0:00:02]} Rae8 {[%emt 0:00:25]} 26. Rce1 {[%emt 0:00:28]} e4 {[%emt 0:00:10]} 27. Qc7 {[%emt 0:00:02]} Rf7 {[%emt 0:01:16]} 28. Qc4 {[%emt 0:00:23]} Bxh3 {[%emt 0:00:22]} 29. gxh3 {[%emt 0:00:54]} Nf3+ {[%emt 0:00:14]} 30. Kh1 {[%emt 0:00:01]} Qf5 {[%emt 0:00:18]} 31. Rg4 {[%emt 0:00:09]} Nxd2 {[%emt 0:00:15]} 32. Qc3 {[%emt 0:00:04]} Nf3 {[%emt 0:00:07]} 33. Rd1 {[%emt 0:00:01]} h5 {[%emt 0:00:07]} 0-1

[Event "CCT Chessable Masters Place D-III 2024"]
[Site "Online"]
[Date "2024.02.01"]
[Round "1"]
[White "Deac, Bogdan-Daniel"]
[Black "Smirnov, Pavel"]
[Result "1/2-1/2"]
[ECO "C93"]
[WhiteElo "2690"]
[BlackElo "2526"]
[Annotator "ChessBase"]
[PlyCount "125"]
[EventDate "2024.01.12"]
[EventType "k.o."]
[EventCountry "NET"]
[SourceTitle "playchess.com"]
[Source "ChessBase"]
[SourceQuality "1"]
[TimeControl "600+2"]

1. e4 {[%emt 0:00:03]} e5 {[%emt 0:00:04]} 2. Nf3 {[%emt 0:00:00]} Nc6 {[%emt 0:00:01]} 3. Bb5 {[%emt 0:00:01]} a6 {[%emt 0:00:01]} 4. Ba4 {[%emt 0:00:00]} Nf6 {[%emt 0:00:01]} 5. O-O {[%emt 0:00:01]} Be7 {[%emt 0:00:01]} 6. d3 {[%emt 0:00:00]} b5 {[%emt 0:00:02]} 7. Bb3 {[%emt 0:00:02]} d6 {[%emt 0:00:01]} 8. c3 {[%emt 0:00:00]} O-O {[%emt 0:00:03]} 9. h3 {[%emt 0:00:01]} Re8 {[%emt 0:00:03]} 10. Ng5 {[%emt 0:00:19]} Rf8 {[%emt 0:00:02]} 11. Re1 {[%emt 0:00:18]} h6 {[%emt 0:00:15]} 12. Nf3 {[%emt 0:00:03]} Bb7 {[%emt 0:00:01]} 13. a4 {[%emt 0:01:17]} Na5 {[%emt 0:00:28]} 14. Ba2 {[%emt 0:00:02]} c5 {[%emt 0:00:06]} 15. Na3 {[%emt 0:00:30]} Qd7 {[%emt 0:00:53]} 16. axb5 {[%emt 0:03:03]} axb5 {[%emt 0:00:03]} 17. Be3 {[%emt 0:00:01]} Rfc8 {[%emt 0:01:03]} 18. b4 {[%emt 0:02:36]} cxb4 {[%emt 0:00:03]} 19. cxb4 {[%emt 0:00:01]} Nc6 {[%emt 0:00:00]} 20. Qb3 {[%emt 0:00:01]} d5 {[%emt 0:00:03]} 21. Nc2 {[%emt 0:00:02]} Ra4 {[%emt 0:00:24]} 22. Bd2 {[%emt 0:00:35]} Rd8 {[%emt 0:00:04]} 23. Qb2 {[%emt 0:00:14]} Rda8 {[%emt 0:01:03]} 24. Bc3 {[%emt 0:00:17]} d4 {[%emt 0:00:32]} 25. Bd2 {[%emt 0:00:03]} Bd6 {[%emt 0:00:01]} 26. Bb3 {[%emt 0:00:09]} Rxa1 {[%emt 0:00:43]} 27. Rxa1 {[%emt 0:00:01]} Rxa1+ {[%emt 0:00:01]} 28. Qxa1 {[%emt 0:00:01]} Bc8 {[%emt 0:01:00]} 29. Nh4 {[%emt 0:00:12]} Qe7 {[%emt 0:00:43]} 30. Qa8 {[%emt 0:00:48]} Qb7 {[%emt 0:00:03]} 31. Qa2 {[%emt 0:00:02]} Nd8 {[%emt 0:00:40]} 32. g4 {[%emt 0:00:11]} Be6 {[%emt 0:00:12]} 33. Nf5 {[%emt 0:00:04]} Bf8 {[%emt 0:00:04]} 34. Ne1 {[%emt 0:00:02]} Kh7 {[%emt 0:00:07]} 35. Ng2 {[%emt 0:00:08]} g6 {[%emt 0:00:18]} 36. Ng3 {[%emt 0:00:01]} Bxb3 {[%emt 0:00:22]} 37. Qxb3 {[%emt 0:00:01]} Ne6 {[%emt 0:00:00]} 38. f4 {[%emt 0:00:01]} exf4 {[%emt 0:00:07]} 39. Nxf4 {[%emt 0:00:01]} Qc7 {[%emt 0:00:32]} 40. Nge2 {[%emt 0:00:03]} Ng7 {[%emt 0:00:51]} 41. Kg2 {[%emt 0:00:03]} Bd6 {[%emt 0:00:07]} 42. Kf3 {[%emt 0:00:01]} Be5 {[%emt 0:00:02]} 43. Ng3 {[%emt 0:00:02]} g5 {[%emt 0:00:03]} 44. Nfe2 {[%emt 0:00:01]} Ne6 {[%emt 0:00:01]} 45. Nf5 {[%emt 0:00:01]} h5 {[%emt 0:00:04]} 46. Qa2 {[%emt 0:00:02]} hxg4+ {[%emt 0:00:03]} 47. hxg4 {[%emt 0:00:00]} Kg6 {[%emt 0:00:02]} 48. Neg3 {[%emt 0:00:01]} Qd8 {[%emt 0:00:03]} 49. Nh5 {[%emt 0:00:02]} Nxh5 {[%emt 0:00:03]} 50. gxh5+ {[%emt 0:00:00]} Kxh5 {[%emt 0:00:00]} 51. Qa1 {[%emt 0:00:02]} Kg6 {[%emt 0:00:02]} 52. Qh1 {[%emt 0:00:01]} Qh8 {[%emt 0:00:01]} 53. Ne7+ {[%emt 0:00:01]} Kg7 {[%emt 0:00:02]} 54. Qxh8+ {[%emt 0:00:02]} Kxh8 {[%emt 0:00:01]} 55. Nc6 {[%emt 0:00:01]} Bf4 {[%emt 0:00:03]} 56. Bxf4 {[%emt 0:00:03]} Nxf4 {[%emt 0:00:01]} 57. Nxd4 {[%emt 0:00:01]} Nxd3 {[%emt 0:00:01]} 58. Nxb5 {[%emt 0:00:01]} Nxb4 {[%emt 0:00:01]} 59. Kg4 {[%emt 0:00:01]} f6 {[%emt 0:00:02]} 60. e5 {[%emt 0:00:01]} fxe5 {[%emt 0:00:01]} 61. Kxg5 {[%emt 0:00:01]} e4 {[%emt 0:00:01]} 62. Kf4 {[%emt 0:00:00]} e3 {[%emt 0:00:00]} 63. Kxe3 {[%emt 0:00:01]} 1/2-1/2

[Event "CCT Chessable Masters Place D-III 2024"]
[Site "Online"]
[Date "2024.02.01"]
[Round "1"]
[White "Saric, Ivan"]
[Black "youngKID"]
[Result "0-1"]
[ECO "C92"]
[WhiteElo "2689"]
[BlackElo "2519"]
[Annotator "ChessBase"]
[PlyCount "200"]
[EventDate "2024.01.12"]
[EventType "k.o."]
[EventCountry "NET"]
[SourceTitle "playchess.com"]
[Source "ChessBase"]
[SourceQuality "1"]
[TimeControl "600+2"]

1. e4 {[%emt 0:00:15]} e5 {[%emt 0:00:09]} 2. Nf3 {[%emt 0:00:03]} Nc6 {[%emt 0:00:01]} 3. Bb5 {[%emt 0:00:00]} a6 {[%emt 0:00:03]} 4. Ba4 {[%emt 0:00:01]} Nf6 {[%emt 0:00:03]} 5. O-O {[%emt 0:00:01]} Be7 {[%emt 0:00:05]} 6. Re1 {[%emt 0:00:03]} b5 {[%emt 0:00:03]} 7. Bb3 {[%emt 0:00:01]} d6 {[%emt 0:00:05]} 8. c3 {[%emt 0:00:01]} O-O {[%emt 0:00:02]} 9. h3 {[%emt 0:00:00]} Bb7 {[%emt 0:00:37]} 10. d4 {[%emt 0:00:05]} Re8 {[%emt 0:00:01]} 11. Nbd2 {[%emt 0:00:02]} Bf8 {[%emt 0:00:04]} 12. a4 {[%emt 0:00:06]} h6 {[%emt 0:00:18]} 13. Bc2 {[%emt 0:00:02]} exd4 {[%emt 0:01:01]} 14. cxd4 {[%emt 0:00:00]} Nb4 {[%emt 0:00:01]} 15. Bb1 {[%emt 0:00:03]} c5 {[%emt 0:00:00]} 16. d5 {[%emt 0:00:01]} g6 {[%emt 0:00:16]} 17. Nf1 {[%emt 0:00:11]} Bg7 {[%emt 0:00:49]} 18. N1h2 {[%emt 0:00:07]} Qd7 {[%emt 0:01:06]} 19. Ra3 {[%emt 0:00:04]} Re7 {[%emt 0:00:08]} 20. axb5 {[%emt 0:00:16]} axb5 {[%emt 0:00:07]} 21. Rxa8+ {[%emt 0:00:18]} Bxa8 {[%emt 0:00:00]} 22. Bd2 {[%emt 0:00:01]} Na6 {[%emt 0:00:09]} 23. Qc1 {[%emt 0:00:08]} Kh7 {[%emt 0:01:16]} 24. g4 {[%emt 0:00:07]} Qe8 {[%emt 0:00:40]} 25. g5 {[%emt 0:02:52]} hxg5 {[%emt 0:01:00]} 26. Bxg5 {[%emt 0:00:24]} Nc7 {[%emt 0:01:36]} 27. e5 {[%emt 0:01:15]} Nfxd5 {[%emt 0:00:15]} 28. Bxe7 {[%emt 0:00:30]} Qxe7 {[%emt 0:00:00]} 29. Ng4 {[%emt 0:00:34]} dxe5 {[%emt 0:00:12]} 30. Ngxe5 {[%emt 0:00:57]} Ne6 {[%emt 0:00:17]} 31. Nxg6 {[%emt 0:00:12]} Qf6 {[%emt 0:00:23]} 32. Rxe6 {[%emt 0:00:39]} fxe6 {[%emt 0:00:04]} 33. Qxc5 {[%emt 0:00:09]} Qxb2 {[%emt 0:00:11]} 34. Be4 {[%emt 0:00:23]} Nf6 {[%emt 0:00:01]} 35. Nf8+ {[%emt 0:01:03]} Kg8 {[%emt 0:00:01]} 36. Bxa8 {[%emt 0:00:00]} Bxf8 {[%emt 0:00:02]} 37. Qc6 {[%emt 0:00:11]} Qb1+ {[%emt 0:00:04]} 38. Kh2 {[%emt 0:00:03]} Qf5 {[%emt 0:00:00]} 39. Kg2 {[%emt 0:00:04]} Nd5 {[%emt 0:00:01]} 40. Qc1 {[%emt 0:00:06]} Nf4+ {[%emt 0:00:04]} 41. Kh1 {[%emt 0:00:02]} Qxh3+ {[%emt 0:00:01]} 42. Nh2 {[%emt 0:00:01]} Bd6 {[%emt 0:00:04]} 43. Qg1+ {[%emt 0:00:03]} Kf7 {[%emt 0:00:02]} 44. Qg4 {[%emt 0:00:01]} Qd3 {[%emt 0:00:02]} 45. Nf3 {[%emt 0:00:03]} Qd1+ {[%emt 0:00:04]} 46. Qg1 {[%emt 0:00:02]} Qd3 {[%emt 0:00:01]} 47. Ng5+ {[%emt 0:00:02]} Ke7 {[%emt 0:00:01]} 48. Be4 {[%emt 0:00:01]} Qc3 {[%emt 0:00:02]} 49. Qg4 {[%emt 0:00:01]} Qh8+ {[%emt 0:00:02]} 50. Kg1 {[%emt 0:00:01]} Qa1+ {[%emt 0:00:01]} 51. Kh2 {[%emt 0:00:01]} Qf6 {[%emt 0:00:04]} 52. Kg1 {[%emt 0:00:02]} b4 {[%emt 0:00:01]} 53. Nf3 {[%emt 0:00:01]} Qa1+ {[%emt 0:00:01]} 54. Kh2 {[%emt 0:00:01]} Qh8+ {[%emt 0:00:01]} 55. Qh4+ {[%emt 0:00:02]} Qxh4+ {[%emt 0:00:02]} 56. Nxh4 {[%emt 0:00:00]} b3 {[%emt 0:00:02]} 57. Kg1 {[%emt 0:00:01]} Ne2+ {[%emt 0:00:01]} 58. Kf1 {[%emt 0:00:01]} Nc3 {[%emt 0:00:01]} 59. Bd3 {[%emt 0:00:05]} b2 {[%emt 0:00:00]} 60. Nf3 {[%emt 0:00:04]} b1=Q+ {[%emt 0:00:02]} 61. Bxb1 {[%emt 0:00:00]} Nxb1 {[%emt 0:00:00]} 62. Ke2 {[%emt 0:00:01]} Nc3+ {[%emt 0:00:01]} 63. Kd3 {[%emt 0:00:00]} Nd5 {[%emt 0:00:00]} 64. Nd4 {[%emt 0:00:02]} Bc5 {[%emt 0:00:02]} 65. Nc6+ {[%emt 0:00:03]} Kd6 {[%emt 0:00:01]} 66. Na5 {[%emt 0:00:00]} Bxf2 {[%emt 0:00:01]} 67. Nc4+ {[%emt 0:00:00]} Ke7 {[%emt 0:00:01]} 68. Ke4 {[%emt 0:00:01]} Nf6+ {[%emt 0:00:01]} 69. Kf3 {[%emt 0:00:01]} Ba7 {[%emt 0:00:01]} 70. Na5 {[%emt 0:00:02]} Bb6 {[%emt 0:00:02]} 71. Nc4 {[%emt 0:00:01]} Bc7 {[%emt 0:00:01]} 72. Ke3 {[%emt 0:00:01]} Nd7 {[%emt 0:00:02]} 73. Ke4 {[%emt 0:00:01]} Kf6 {[%emt 0:00:02]} 74. Kd4 {[%emt 0:00:02]} Nb6 {[%emt 0:00:05]} 75. Na3 {[%emt 0:00:01]} Be5+ {[%emt 0:00:03]} 76. Ke4 {[%emt 0:00:01]} Nd7 {[%emt 0:00:00]} 77. Nb5 {[%emt 0:00:01]} Nc5+ {[%emt 0:00:01]} 78. Ke3 {[%emt 0:00:00]} Kf5 {[%emt 0:00:01]} 79. Na3 {[%emt 0:00:02]} Bf4+ {[%emt 0:00:01]} 80. Kf3 {[%emt 0:00:00]} e5 {[%emt 0:00:00]} 81. Nc4 {[%emt 0:00:01]} e4+ {[%emt 0:00:01]} 82. Ke2 {[%emt 0:00:00]} Ne6 {[%emt 0:00:01]} 83. Kf2 {[%emt 0:00:02]} Nd4 {[%emt 0:00:01]} 84. Ke1 {[%emt 0:00:02]} e3 {[%emt 0:00:01]} 85. Nxe3+ {[%emt 0:00:00]} Bxe3 {[%emt 0:00:00]} 86. Kf1 {[%emt 0:00:01]} Kf4 {[%emt 0:00:08]} 87. Kg2 {[%emt 0:00:01]} Nf3 {[%emt 0:00:06]} 88. Kf1 {[%emt 0:00:01]} Nd2+ {[%emt 0:00:01]} 89. Ke2 {[%emt 0:00:01]} Ke4 {[%emt 0:00:01]} 90. Ke1 {[%emt 0:00:03]} Kd3 {[%emt 0:00:01]} 91. Kd1 {[%emt 0:00:00]} Bf2 {[%emt 0:00:00]} 92. Kc1 {[%emt 0:00:01]} Nc4 {[%emt 0:00:01]} 93. Kd1 {[%emt 0:00:00]} Ne3+ {[%emt 0:00:01]} 94. Kc1 {[%emt 0:00:00]} Kc3 {[%emt 0:00:00]} 95. Kb1 {[%emt 0:00:02]} Kb3 {[%emt 0:00:01]} 96. Kc1 {[%emt 0:00:00]} Be1 {[%emt 0:00:00]} 97. Kb1 {[%emt 0:00:03]} Bd2 {[%emt 0:00:01]} 98. Ka1 {[%emt 0:00:00]} Nc2+ {[%emt 0:00:00]} 99. Kb1 {[%emt 0:00:01]} Na3+ {[%emt 0:00:00]} 100. Ka1 {[%emt 0:00:01]} Bc3# {[%emt 0:00:00]} 0-1